fUSD/lending_fUSD_20251026
["ID","MTS","AMOUNT","RATE_DAILY","PERIOD"]
[392467231,1761521445453,-689.90720007,0.0004,120]
[392467232,1761521445462,-704.68500262,0.0004,120]
[392467233,1761521445472,-384.70307711,0.0004,2]
[392467234,1761521445485,-878.40208606,0.0004,30]
[392467235,1761521445496,-520.259276,0.0004,120]
[392467236,1761521445506,-215.60815008,0.0004,2]
[392467237,1761521445515,-937.37361236,0.0004,2]
[392467238,1761521445525,-1144.33924144,0.0004,120]
[392467239,1761521445534,-1340.56761381,0.0004,120]
[392467240,1761521445544,-2104.40681376,0.0004,30]
[392467241,1761521445553,-500.0,0.0004,30]
[392467242,1761521445562,-2019.40822095,0.0004,120]
[392467243,1761521445572,-151.0,0.0004,120]
[392467244,1761521445582,-1528.03253566,0.0004,120]
[392467245,1761521445591,-151.0,0.0004,120]
[392467246,1761521445600,-151.0,0.0004,120]
[392467247,1761521445610,-1500.0,0.00040066,120]
[392467248,1761521445619,-1000.0,0.0004017,2]
[392467249,1761521445628,-168.0,0.00040213,2]
[392467250,1761521445638,-168.0,0.00040215,2]
[392467251,1761521445648,-4314.24668182,0.00040233,15]
[392467252,1761521445657,-168.0,0.0004025,2]
[392467253,1761521445666,-150.0,0.00040315,4]
[392467254,1761521445676,-150.0,0.00040315,4]
[392467255,1761521445685,-150.0,0.00040315,4]
[392467256,1761521445695,-150.0,0.00040315,4]
[392467257,1761521445705,-150.0,0.00040315,4]
[392467258,1761521445715,-150.0,0.00040315,4]
[392467259,1761521445724,-150.0,0.00040315,4]
[392467260,1761521445733,-220.93837237,0.00040315,4]
[392467261,1761521445743,-150.00000001,0.00040315,4]
[392467262,1761521445756,-1002.04198977,0.000405,120]
[392467263,1761521445766,-1579.1,0.00040514,2]
[392467264,1761521445775,-168.0,0.00040859,2]
[392467265,1761521445784,-1676.06982313,0.000409,15]
[392467266,1761521445793,-79611.0994228,0.00041,2]
[392467267,1761521445803,-3699.46589049,0.00041,120]
[392467268,1761521445812,-2024.47854296,0.00041,120]
[392467269,1761521445822,-151.0,0.00041,120]
[392467270,1761521445832,-151.0,0.00041,120]
[392467271,1761521445841,-151.0,0.00041,120]
[392467272,1761521445851,-200.0,0.00041063,2]
[392467273,1761521445860,-1110.44,0.00041096,120]
[392467274,1761521445869,-5388.28,0.00041096,120]
[392467275,1761521445879,-447.0,0.000411,2]
[392467276,1761521445889,-1164.0,0.000411,2]
[392467277,1761521445899,-512.98340326,0.000411,2]
[392467278,1761521445908,-168.0,0.00041133,7]
[392467279,1761521445917,-1060.9667,0.00041328,2]
[392467280,1761521445927,-168.0,0.00041337,2]
[392467281,1761521445936,-168.0,0.00041382,2]
[392467282,1761521445945,-4314.24668182,0.000414,15]
[392467283,1761521445954,-560.08,0.000414,14]
[392467284,1761521445964,-1000.0,0.00041427,3]
[392467285,1761521445973,-1313.0,0.00041428,2]
[392467286,1761521445982,-1592.0,0.00041428,2]
[392467287,1761521445991,-606.0,0.00041428,2]
[392467288,1761521446001,-818.0,0.00041428,2]
[392467289,1761521446011,-1270.0,0.00041428,2]
[392467290,1761521446020,-1185.0,0.00041428,2]
[392467291,1761521446029,-904.0,0.00041428,2]
[392467292,1761521446039,-819.0,0.00041428,2]
[392467293,1761521446048,-6585.0,0.00041428,2]
[392467294,1761521446058,-3489.0,0.00041428,2]
[392467295,1761521446067,-573.0,0.00041428,2]
[392467296,1761521446076,-150.0,0.00041808,30]
[392467298,1761521446086,-300.0,0.00041808,30]
[392467299,1761521446095,-176.70461,0.0004186,11]
[392467300,1761521446104,-1676.06982313,0.000419,15]
[392467301,1761521446114,-68878.14614064,0.00041999,2]
[392467302,1761521446123,-151.0,0.00041999,120]
[392467303,1761521446132,-151.0,0.00041999,120]
[392467304,1761521446142,-151.0,0.00041999,120]
[392467305,1761521446151,-358.90108655,0.00042,15]
[392467306,1761521446161,-503.95686234,0.00042,96]
[392467307,1761521446170,-2215.46,0.00042,120]
[392467308,1761521446180,-1351.3428198,0.0004201,2]
[392467309,1761521446189,-172.67039556,0.00042033,120]
[392467310,1761521446198,-152.88935703,0.00042033,120]
[392467311,1761521446208,-1985.55,0.00042055,2]
[392467312,1761521446217,-582.0,0.000421,3]
[392467313,1761521446227,-7342.67895431,0.00042101,30]
[392467314,1761521446236,-694.08,0.00042137,30]
[392467315,1761521446246,-696.9,0.00042137,30]
[392467316,1761521446256,-696.9,0.00042137,30]
[392467317,1761521446265,-696.9,0.00042137,30]
[392467318,1761521446274,-168.0,0.00042151,2]
[392467319,1761521446284,-5589.35621695,0.000422,2]
[392467320,1761521446293,-1004.3755,0.0004224,2]
[392467321,1761521446303,-150.0,0.00042274,7]
[392467322,1761521446312,-150.0,0.00042274,7]
[392467323,1761521446322,-1544.0,0.00042274,7]
[392467324,1761521446331,-500.0,0.00042274,7]
[392467325,1761521446341,-1000.0,0.00042283,2]
[392467326,1761521446351,-1000.0,0.00042283,2]
[392467327,1761521446360,-1000.0,0.00042283,2]
[392467328,1761521446370,-1000.0,0.00042283,2]
[392467329,1761521446379,-1000.0,0.00042283,2]
[392467330,1761521446389,-1000.0,0.00042283,2]
[392467331,1761521446398,-1000.0,0.00042283,2]
[392467332,1761521446407,-1000.0,0.00042283,2]
[392467333,1761521446417,-1000.0,0.00042283,2]
[392467334,1761521446426,-836.43532844,0.00042283,2]
[392467335,1761521446436,-25000.0,0.00042297,2]
[392467336,1761521446445,-150.0,0.00042301,7]
[392467337,1761521446454,-150.0,0.00042301,7]
[392467338,1761521446463,-1544.0,0.00042301,7]
[392467339,1761521446472,-500.0,0.00042301,7]
[392467340,1761521446482,-319.41,0.00042321,2]
[392467341,1761521446491,-193033.4626,0.00042327,2]
[392467342,1761521446500,-1544.0,0.00042329,7]
[392467343,1761521446510,-500.0,0.00042329,7]
[392467344,1761521446519,-4903.8133314,0.00042338,14]
[392467345,1761521446528,-1413.68,0.0004234,2]
[392467346,1761521446538,-166.66,0.00042344,2]
[392467347,1761521446548,-1544.0,0.00042356,7]
[392467348,1761521446557,-500.0,0.00042356,7]
[392467349,1761521446567,-200.0,0.00042381,10]
[392467350,1761521446576,-502.336972,0.00042381,10]
[392467351,1761521446586,-504.78146158,0.00042381,10]
[392467352,1761521446596,-1544.0,0.00042384,7]
[392467353,1761521446605,-500.0,0.00042384,7]
[392467354,1761521446615,-1544.0,0.00042411,7]
[392467355,1761521446624,-500.0,0.00042411,7]
[392467356,1761521446633,-151.0,0.00042411,120]
[392467357,1761521446642,-151.0,0.00042411,120]
[392467358,1761521446651,-151.0,0.00042411,120]
[392467359,1761521446660,-151.0,0.00042411,120]
[392467360,1761521446669,-5000.0,0.00042412,2]
[392467361,1761521446678,-151.0,0.00042412,120]
[392467362,1761521446688,-151.0,0.00042412,120]
[392467363,1761521446697,-151.0,0.00042412,120]
[392467364,1761521446707,-151.795919,0.00042412,120]
[392467365,1761521446715,-151.0,0.00042412,120]
[392467366,1761521446725,-153.737249,0.00042412,120]
[392467367,1761521446734,-3611.02,0.00042427,2]
[392467368,1761521446745,-151.0,0.00042427,120]
[392467369,1761521446757,-151.0,0.00042427,120]
[392467370,1761521446767,-151.0,0.00042427,120]
[392467371,1761521446776,-151.0,0.00042427,120]
[392467372,1761521446785,-151.0,0.00042427,120]
[392467373,1761521446796,-151.0,0.00042427,120]
[392467374,1761521446805,-156.744368,0.00042427,120]
[392467375,1761521446815,-151.0,0.00042427,30]
[392467376,1761521446827,-151.0,0.00042427,120]
[392467377,1761521446836,-151.0,0.00042427,120]
[392467378,1761521446846,-151.0,0.00042427,120]
[392467379,1761521446856,-151.0,0.00042427,15]
[392467380,1761521446865,-151.0,0.00042427,120]
[392467381,1761521446874,-151.0,0.00042427,120]
[392467382,1761521446884,-151.0,0.00042427,120]
[392467383,1761521446893,-151.0,0.00042427,120]
[392467384,1761521446903,-151.0,0.00042427,120]
[392467385,1761521446912,-1544.0,0.00042438,7]
[392467386,1761521446922,-500.0,0.00042438,7]
[392467387,1761521446932,-2534.37,0.00042455,2]
[392467388,1761521446942,-1544.0,0.00042466,7]
[392467389,1761521446951,-500.0,0.00042466,7]
[392467390,1761521446960,-2490.12,0.00042484,2]
[392467391,1761521446969,-5000.0,0.00042488,2]
[392467392,1761521446979,-1544.0,0.00042493,7]
[392467393,1761521446988,-500.0,0.00042493,7]
[392467394,1761521446999,-150.0,0.000425,120]
[392467395,1761521447008,-1962.0,0.000425,120]
[392467396,1761521447017,-161.830736,0.000425,120]
[392467397,1761521447027,-151.0,0.000425,120]
[392467398,1761521447037,-151.0,0.000425,120]
[392467399,1761521447048,-151.0,0.000425,120]
[392467400,1761521447058,-151.0,0.000425,120]
[392467401,1761521447067,-1621.89181247,0.000425,120]
[392467402,1761521447077,-1544.0,0.00042521,7]
[392467403,1761521447086,-500.0,0.00042521,7]
[392467404,1761521447096,-5000.0,0.00042544,2]
[392467405,1761521447105,-829.44,0.00042544,2]
[392467406,1761521447114,-300.0,0.00042548,30]
[392467407,1761521447124,-300.0,0.00042548,30]
[392467408,1761521447134,-1095.84,0.00042548,30]
[392467409,1761521447143,-414.6,0.00042548,30]
[392467410,1761521447152,-534.97,0.00042548,30]
[392467411,1761521447161,-337.22,0.00042548,30]
[392467412,1761521447170,-1544.0,0.00042548,7]
[392467413,1761521447179,-603.3368439,0.00042548,7]
[392467414,1761521447189,-5000.0,0.00042554,2]
[392467415,1761521447198,-151.0,0.00042554,120]
[392467416,1761521447207,-151.0,0.00042554,120]
[392467417,1761521447216,-156.867739,0.00042554,120]
[392467418,1761521447226,-150.0,0.00042555,30]
[392467419,1761521447235,-150.0,0.00042555,30]
[392467420,1761521447244,-2354.68,0.00042561,2]
[392467421,1761521447254,-296.109214,0.00042561,120]
[392467422,1761521447263,-151.0,0.00042561,120]
[392467423,1761521447272,-151.0,0.00042561,120]
[392467424,1761521447282,-151.0,0.00042561,120]
[392467425,1761521447290,-4314.24668182,0.00042567,15]
[392467426,1761521447300,-328.31,0.00042571,2]
[392467427,1761521447310,-2817.2,0.00042572,2]
[392467428,1761521447319,-1544.0,0.00042575,7]
[392467429,1761521447330,-1544.0,0.00042603,7]
[392467430,1761521447339,-168.0,0.00042605,2]
[392467431,1761521447348,-257.879117,0.0004263,120]
[392467432,1761521447358,-151.0,0.0004263,15]
[392467433,1761521447368,-151.0,0.0004263,120]
[392467434,1761521447377,-151.0,0.0004263,120]
[392467435,1761521447387,-151.0,0.0004263,120]
[392467436,1761521447397,-419.0,0.0004263,7]
[392467437,1761521447407,-1544.0,0.0004263,7]
[392467438,1761521447416,-5000.0,0.00042652,120]
[392467439,1761521447425,-1544.0,0.00042658,7]
[392467440,1761521447434,-292.398873,0.0004267,120]
[392467441,1761521447444,-151.0,0.0004267,120]
[392467442,1761521447453,-151.0,0.0004267,120]
[392467443,1761521447462,-500.0,0.0004267,9]
[392467444,1761521447472,-151.0,0.0004267,120]
[392467445,1761521447481,-151.0,0.0004267,120]
[392467446,1761521447490,-151.0,0.0004267,120]
[392467447,1761521447500,-151.0,0.0004267,120]
[392467448,1761521447509,-5000.0,0.00042671,2]
[392467449,1761521447519,-151.0,0.00042671,120]
[392467450,1761521447528,-151.0,0.00042671,120]
[392467451,1761521447537,-151.0,0.00042671,120]
[392467452,1761521447546,-1544.0,0.00042685,7]
[392467453,1761521447555,-151.0,0.00042688,120]
[392467454,1761521447564,-151.0,0.00042688,120]
[392467455,1761521447573,-151.975807,0.00042688,120]
[392467456,1761521447583,-151.0,0.00042688,120]
[392467457,1761521447592,-215.362427,0.00042688,120]
[392467458,1761521447602,-208.079885,0.00042688,120]
[392467459,1761521447612,-151.0,0.00042688,120]
[392467460,1761521447621,-5000.0,0.00042689,2]
[392467461,1761521447631,-151.0,0.00042689,120]
[392467462,1761521447641,-151.81273,0.00042689,120]
[392467463,1761521447651,-151.0,0.00042689,120]
[392467464,1761521447660,-151.0,0.00042689,120]
[392467465,1761521447796,-151.0,0.00042689,120]
[392467466,1761521447806,-151.0,0.00042689,10]
[392467467,1761521447816,-151.839366,0.00042689,120]
[392467468,1761521447825,-257.681524,0.00042692,120]
[392467469,1761521447835,-1000.0,0.00042692,30]
[392467470,1761521447844,-1097.36202153,0.00042692,30]
[392467471,1761521447854,-1544.0,0.00042712,7]
[392467472,1761521447863,-1018.64,0.00042722,2]
[392467473,1761521447871,-500.0,0.00042729,7]
[392467474,1761521447881,-500.0,0.00042729,2]
[392467475,1761521447890,-500.0,0.00042729,9]
[392467476,1761521447899,-19228.78,0.0004273,2]
[392467477,1761521447908,-151.0,0.0004273,120]
[392467478,1761521447917,-267.927669,0.0004273,120]
[392467479,1761521447926,-1544.0,0.0004274,7]
[392467480,1761521447935,-151.0,0.0004274,120]
[392467481,1761521447945,-151.0,0.0004274,120]
[392467482,1761521447954,-151.0,0.0004274,120]
[392467483,1761521447963,-151.0,0.0004274,120]
[392467484,1761521447972,-151.0,0.0004274,120]
[392467485,1761521447980,-151.0,0.0004274,15]
[392467486,1761521447989,-167.545004,0.0004274,120]
[392467487,1761521447999,-151.0,0.0004274,120]
[392467488,1761521448008,-420.34,0.00042742,30]
[392467489,1761521448017,-25000.0,0.0004275,2]
[392467490,1761521448026,-151.0,0.0004275,120]
[392467491,1761521448035,-234.84803031,0.0004275,120]
[392467492,1761521448043,-151.0,0.0004275,120]
[392467493,1761521448053,-151.0,0.0004275,10]
[392467494,1761521448063,-151.0,0.0004275,120]
[392467495,1761521448081,-5000.0,0.00042752,2]
[392467496,1761521448091,-151.0,0.00042752,120]
[392467497,1761521448099,-227.547596,0.00042752,120]
[392467498,1761521448108,-151.0,0.00042752,120]
[392467499,1761521448117,-187.426162,0.00042752,15]
[392467500,1761521448126,-151.0,0.00042752,120]
[392467501,1761521448135,-1544.0,0.00042767,7]
[392467502,1761521448144,-11270.6298,0.00042771,60]
[392467503,1761521448154,-168.0,0.00042771,2]
[392467504,1761521448163,-1544.0,0.00042795,7]
[392467505,1761521448173,-5000.0,0.00042798,2]
[392467506,1761521448182,-5000.0,0.00042811,2]
[392467507,1761521448191,-164.65407735,0.00042816,28]
[392467508,1761521448201,-500.0,0.00042817,10]
[392467509,1761521448210,-984.8590617,0.0004282,2]
[392467510,1761521448219,-1544.0,0.00042822,7]
[392467511,1761521448228,-1544.0,0.00042849,7]
[392467512,1761521448237,-176.70461,0.0004286,15]
[392467513,1761521448246,-151.0,0.00042862,120]
[392467514,1761521448255,-5000.0,0.00042871,2]
[392467515,1761521448264,-151.0,0.00042871,10]
[392467516,1761521448273,-151.0,0.00042871,120]
[392467517,1761521448282,-151.0,0.00042871,120]
[392467518,1761521448291,-151.0,0.00042871,120]
[392467519,1761521448300,-1544.0,0.00042877,7]
[392467520,1761521448310,-205.12782196,0.00042884,4]
[392467521,1761521448320,-1676.06982313,0.000429,15]
[392467522,1761521448329,-1564.5116914,0.00042904,7]
[392467523,1761521448339,-500.0,0.00042922,9]
[392467524,1761521448348,-2963.53,0.00042923,2]
[392467525,1761521448357,-166.66,0.00042925,2]
[392467526,1761521448366,-2065.40715663,0.00042926,120]
[392467527,1761521448375,-5000.0,0.00042927,2]
[392467528,1761521448384,-1002.04198977,0.00042929,120]
[392467529,1761521448393,-5000.0,0.00042933,2]
[392467530,1761521448403,-5000.0,0.00042983,2]
[392467531,1761521448412,-151.0,0.0004299,10]
[392467532,1761521448421,-150.0,0.00043,120]
[392467533,1761521448430,-150.0,0.00043,120]
[392467534,1761521448439,-1969.38803179,0.00043,30]
[392467535,1761521448448,-606.11038146,0.00043,120]
[392467536,1761521448458,-467.22634552,0.00043,120]
[392467537,1761521448467,-10206.13702913,0.00043,120]
[392467538,1761521448476,-200.0,0.00043066,10]
[392467539,1761521448485,-1182.09197154,0.000431,120]
[392467540,1761521448493,-164.65407731,0.00043121,28]
[392467541,1761521448502,-532.61119951,0.0004328,120]
[392467542,1761521448511,-560.08,0.000433,14]
[392467543,1761521448520,-300.0,0.00043305,30]
[392467544,1761521448531,-168.0,0.0004338,2]
[392467545,1761521448540,-168.0,0.00043402,7]
[392467546,1761521448551,-164.65407731,0.00043426,28]
[392467547,1761521448560,-150.0,0.000435,120]
[392467548,1761521448569,-3292.08860152,0.000435,120]
[392467549,1761521448578,-1095.84,0.00043534,30]
[392467550,1761521448587,-414.6,0.00043562,30]
[392467551,1761521448596,-150.0,0.00043562,30]
[392467552,1761521448606,-414.6,0.00043562,30]
[392467553,1761521448617,-150.0,0.00043562,30]
[392467554,1761521448627,-1401.4013033,0.00043685,12]
[392467555,1761521448637,-154.224963,0.00043714,10]
[392467556,1761521448646,-500.0,0.00043715,9]
[392467557,1761521448655,-500.0,0.00043724,7]
[392467558,1761521448664,-500.0,0.00043724,2]
[392467559,1761521448674,-500.0,0.00043724,9]
[392467560,1761521448683,-164.65407731,0.00043731,28]
[392467561,1761521448692,-4314.24668182,0.00043733,15]
[392467562,1761521448701,-1326.94818355,0.00043734,60]
[392467563,1761521448711,-500.0,0.00043734,7]
[392467564,1761521448720,-500.0,0.00043734,9]
[392467565,1761521448730,-500.0,0.00043734,9]
[392467566,1761521448741,-6316.28061305,0.00043748,31]
[392467567,1761521448756,-500.0,0.00043834,7]
[392467568,1761521448765,-529.95559345,0.00043834,9]
[392467569,1761521448775,-500.0,0.00043834,9]
[392467570,1761521448786,-1823.27906659,0.00043834,60]
[392467571,1761521448798,-500.0,0.00043835,30]
[392467572,1761521448807,-1000.0,0.00043835,2]
[392467573,1761521448817,-500.0,0.00043835,2]
[392467574,1761521448827,-500.0,0.00043835,120]
[392467575,1761521448837,-500.0,0.00043835,120]
[392467576,1761521448848,-500.0,0.00043835,120]
[392467577,1761521448858,-500.0,0.00043835,120]
[392467578,1761521448868,-507.61805571,0.00043835,120]
[392467579,1761521448877,-502.58597062,0.00043835,120]
[392467580,1761521448886,-1000.0,0.00043835,120]
[392467581,1761521448896,-500.0,0.00043835,120]
[392467582,1761521448907,-500.0,0.00043835,2]
[392467583,1761521448916,-172.39669895,0.00043835,120]
[392467584,1761521448926,-451.34017105,0.00043835,120]
[392467585,1761521448935,-404.21047252,0.00043835,120]
[392467586,1761521448945,-210.17987812,0.00043835,120]
[392467587,1761521448958,-500.0,0.00043835,120]
[392467588,1761521448967,-500.0,0.00043835,7]
[392467589,1761521448977,-500.0,0.00043835,120]
[392467590,1761521448989,-500.0,0.00043835,120]
[392467591,1761521449000,-503.55602327,0.00043835,120]
[392467592,1761521449010,-500.0,0.00043835,120]
[392467593,1761521449019,-500.0,0.00043835,120]
[392467594,1761521449030,-263.890089,0.00043835,120]
[392467595,1761521449039,-500.0,0.00043835,120]
[392467596,1761521449049,-187.05539945,0.00043835,120]
[392467597,1761521449058,-512.81269099,0.00043835,120]
[392467598,1761521449068,-500.0,0.00043835,120]
[392467599,1761521449079,-500.0,0.00043835,120]
[392467600,1761521449089,-297.19144803,0.00043835,120]
[392467601,1761521449098,-249.44837579,0.00043835,120]
[392467602,1761521449107,-500.0,0.00043835,120]
[392467603,1761521449117,-521.50425338,0.00043835,120]
[392467604,1761521449127,-500.0,0.00043835,120]
[392467605,1761521449137,-280.84319378,0.00043835,120]
[392467606,1761521449146,-300.0,0.00043835,2]
[392467607,1761521449156,-500.0,0.00043835,120]
[392467608,1761521449166,-500.0,0.00043835,120]
[392467609,1761521449175,-500.0,0.00043835,120]
[392467610,1761521449184,-500.0,0.00043835,120]
[392467611,1761521449192,-500.0,0.00043835,120]
[392467612,1761521449201,-500.0,0.00043835,120]
[392467613,1761521449210,-500.0,0.00043835,120]
[392467614,1761521449220,-500.0,0.00043835,120]
[392467615,1761521449229,-511.37595641,0.00043835,120]
[392467616,1761521449238,-516.23420962,0.00043835,120]
[392467617,1761521449248,-500.0,0.00043835,120]
[392467618,1761521449259,-500.0,0.00043835,120]
[392467619,1761521449268,-500.0,0.00043835,120]
[392467620,1761521449277,-396.18203837,0.00043835,120]
[392467621,1761521449287,-495.43484402,0.00043835,120]
[392467622,1761521449297,-1000.0,0.00043835,120]
[392467623,1761521449307,-502.83873026,0.00043835,120]
[392467624,1761521449318,-505.79514389,0.00043835,120]
[392467625,1761521449327,-501.67581897,0.00043835,7]
[392467626,1761521449336,-500.0,0.00043835,120]
[392467627,1761521449346,-505.82865049,0.00043835,120]
[392467628,1761521449356,-254.85094162,0.00043835,120]
[392467629,1761521449364,-554.86245344,0.00043835,120]
[392467630,1761521449373,-200.88111416,0.00043835,120]
[392467631,1761521449382,-527.09697127,0.00043835,120]
[392467632,1761521449392,-511.08761773,0.00043835,120]
[392467633,1761521449401,-506.16301674,0.00043835,120]
[392467634,1761521449410,-295.75228844,0.00043835,2]
[392467635,1761521449420,-513.59,0.00043835,2]
[392467636,1761521449430,-500.0,0.00043835,2]
[392467637,1761521449439,-500.0,0.00043835,120]
[392467638,1761521449451,-500.0,0.00043835,120]
[392467639,1761521449460,-500.0,0.00043835,2]
[392467640,1761521449471,-500.0,0.00043835,120]
[392467641,1761521449480,-500.0,0.00043835,120]
[392467642,1761521449489,-500.0,0.00043835,120]
[392467643,1761521449500,-500.0,0.00043835,120]
[392467644,1761521449509,-500.0,0.00043835,120]
[392467645,1761521449518,-500.0,0.00043835,2]
[392467646,1761521449527,-500.0,0.00043835,120]
[392467647,1761521449536,-500.0,0.00043835,120]
[392467648,1761521449546,-300.0,0.00043835,2]
[392467649,1761521449555,-500.0,0.00043835,120]
[392467650,1761521449564,-500.0,0.00043835,120]
[392467651,1761521449573,-600.0,0.00043835,120]
[392467652,1761521449582,-500.0,0.00043835,120]
[392467653,1761521449591,-500.0,0.00043835,120]
[392467654,1761521449601,-500.0,0.00043835,120]
[392467655,1761521449612,-490.11157468,0.00043835,120]
[392467656,1761521449622,-500.0,0.00043835,120]
[392467657,1761521449631,-500.0,0.00043835,120]
[392467658,1761521449642,-500.0,0.00043835,120]
[392467659,1761521449651,-506.50454407,0.00043835,120]
[392467660,1761521449660,-500.0,0.00043835,120]
[392467661,1761521449668,-500.0,0.00043835,2]
[392467662,1761521449677,-500.0,0.00043835,120]
[392467663,1761521449695,-500.0,0.00043835,120]
[392467664,1761521449703,-586.64532114,0.00043835,120]
[392467665,1761521449714,-304.82276121,0.00043835,120]
[392467666,1761521449723,-500.0,0.00043835,120]
[392467667,1761521449732,-541.79,0.00043835,120]
[392467668,1761521449743,-420.44608337,0.00043835,120]
[392467669,1761521449757,-500.0,0.00043835,120]
[392467670,1761521449769,-500.0,0.00043835,120]
[392467671,1761521449778,-500.0,0.00043835,120]
[392467672,1761521449788,-500.0,0.00043835,7]
[392467673,1761521449797,-505.49280602,0.00043835,120]
[392467674,1761521449806,-582.02,0.00043835,120]
[392467675,1761521449815,-500.0,0.00043835,120]
[392467676,1761521449825,-500.0,0.00043835,120]
[392467677,1761521449835,-2656.43,0.00043835,14]
[392467678,1761521449844,-502.7925663,0.00043835,120]
[392467679,1761521449853,-500.0,0.00043835,120]
[392467680,1761521449863,-2433.49,0.00043835,2]
[392467681,1761521449873,-184.27301889,0.00043835,120]
[392467682,1761521449883,-500.0,0.00043835,120]
[392467683,1761521449893,-500.0,0.00043835,120]
[392467684,1761521449902,-500.0,0.00043835,120]
[392467685,1761521449912,-556.42357471,0.00043835,120]
[392467686,1761521449922,-500.0,0.00043835,120]
[392467687,1761521449932,-2572.3,0.00043835,120]
[392467688,1761521449943,-504.27,0.00043835,120]
[392467689,1761521449953,-500.0,0.00043835,120]
[392467690,1761521449964,-500.0,0.00043835,120]
[392467691,1761521449974,-637.00064058,0.00043835,120]
[392467692,1761521449986,-500.0,0.00043835,2]
[392467693,1761521449994,-504.72272431,0.00043835,120]
[392467694,1761521450003,-500.0,0.00043835,120]
[392467695,1761521450013,-274.19716308,0.00043835,120]
[392467696,1761521450022,-500.0,0.00043835,120]
[392467697,1761521450033,-500.0,0.00043835,120]
[392467698,1761521450043,-640.16769746,0.00043835,120]
[392467699,1761521450053,-500.0,0.00043835,2]
[392467700,1761521450062,-500.0,0.00043835,120]
[392467701,1761521450072,-500.0,0.00043836,120]
[392467702,1761521450082,-500.0,0.00043836,120]
[392467703,1761521450092,-500.0,0.00043836,120]
[392467704,1761521450102,-500.0,0.00043836,120]
[392467705,1761521450112,-500.0,0.00043836,120]
[392467706,1761521450123,-500.0,0.00043836,120]
[392467707,1761521450131,-500.0,0.00043836,120]
[392467708,1761521450141,-500.0,0.00043836,120]
[392467709,1761521450151,-500.0,0.00043836,120]
[392467710,1761521450160,-500.0,0.00043836,120]
[392467711,1761521450169,-500.0,0.00043836,120]
[392467712,1761521450178,-500.0,0.00043836,120]
[392467713,1761521450191,-176.70461,0.0004386,20]
[392467714,1761521450200,-1676.06982313,0.000439,15]
[392467715,1761521450209,-1401.40130325,0.00043917,13]
[392467716,1761521450218,-607.0747597,0.00043999,2]
[392467717,1761521450227,-25697.65140322,0.00044,30]
[392467718,1761521450236,-150.0,0.00044,120]
[392467719,1761521450245,-150.0,0.00044,120]
[392467720,1761521450253,-564.60399941,0.00044,120]
[392467721,1761521450262,-575.97706207,0.00044,30]
[392467722,1761521450271,-765.73399373,0.00044,120]
[392467723,1761521450280,-2462.324107,0.00044,2]
[392467724,1761521450289,-32858.13121107,0.00044,120]
[392467725,1761521450298,-350.26646697,0.00044006,10]
[392467726,1761521450307,-164.65407731,0.00044035,28]
[392467727,1761521450316,-166.66,0.00044091,2]
[392467728,1761521450325,-500.0,0.00044108,7]
[392467729,1761521450334,-500.0,0.00044108,30]
[392467730,1761521450344,-1000.0,0.00044109,2]
[392467731,1761521450353,-500.0,0.00044109,2]